[Event "Indian Blitz Championship 2023"]
[Site "Nashik"]
[Date "2024.03.07"]
[Round "7.8"]
[White "Ayush Sharma"]
[Black "Aradhya, Garg"]
[Result "1-0"]
[ECO "E04"]
[WhiteElo "2311"]
[BlackElo "2385"]
[Annotator "TA"]
[PlyCount "159"]
[EventDate "2024.03.07"]
[EventType "blitz"]
[EventCountry "IND"]
[SourceTitle "playchess.com"]
[Source "ChessBase"]
[SourceQuality "1"]
[TimeControl "180+2"]

{[%evp 12,159,27,20,37,18,10,0,1,0,0,1,14,0,0,0,6,0,0,0,15,9,16,2,10,9,10,12,7,9,102,20,17,20,10,0,0,0,0,0,17,0,6,1,10,0,2,14,71,74,73,0,81,87,79,80,84,84,89,95,125,125,125,91,116,97,114,114,113,88,85,76,112,66,63,63,91,83,84,83,84,83,91,14,75,72,450,459,459,455,440,384,531,488,440,425,422,211,269,0,400,0,0,0,0,0,0,0,8,0,0,0,8,0,0,0,27,8,8,0,0,0,0,0,8,8,8,8,8,8,8,8,1240,8,8,8,29970,29974,29972,29973,29973,29974,29982,29983,29983,29984,29987,29988,29993,29994]} 1. Nf3 {[%emt 0:00:03]} Nf6 {[%emt 0:00:01]} 2. c4 {[%emt 0:00:01]} e6 {[%emt 0:00:02]} 3. g3 {[%emt 0:00:04]} d5 {[%emt 0:00:01]} 4. d4 {[%emt 0:00:02]} dxc4 {[%emt 0:00:01]} 5. Bg2 {[%emt 0:00:02]} Nbd7 {[%emt 0:00:02]} 6. O-O {[%emt 0:00:07]} c6 {[%emt 0:00:01]} 7. a4 {[%emt 0:00:04]} b6 {[%emt 0:00:01]} 8. Qc2 {[%emt 0:00:06][%cal Of1d1]} Bb7 {[%emt 0:00:14]} 9. Qxc4 {[%emt 0:00:14]} c5 {[%emt 0:00:01] The position is equal.} 10. Rd1 {[%emt 0:00:03]} Rc8 {[%emt 0:00:01]} 11. Nc3 {[%emt 0:00:07]} Be7 {[%emt 0:00:27]} 12. dxc5 {[%emt 0:00:25]} O-O {[%emt 0:00:26]} 13. Be3 {[%emt 0:00:13]} Bxc5 {[%emt 0:00:03]} 14. Bxc5 {[%emt 0:00:01]} Rxc5 {[%emt 0:00:01]} 15. Qd4 {[%emt 0:00:20]} Qe7 {[%emt 0:02:10]} 16. b4 {[%emt 0:00:31]} Rcc8 {[%emt 0:00:00]} 17. Nb5 {[%emt 0:00:03]} Bd5 {[%emt 0:00:00]} 18. Rac1 {[%emt 0:00:25] Inhibits Rc4.} a5 {[%emt 0:00:00]} 19. bxa5 {[%emt 0:00:05]} bxa5 {[%emt 0:00:00]} 20. Nc7 {[%emt 0:00:11]} Qb4 {[%emt 0:00:00]} (20... Bb3 $11 21. Re1 Rb8) 21. Nxd5 {[%emt 0:00:26]} (21. Qxb4 $16 axb4 22. Nd4 Bxg2 23. Kxg2) 21... Nxd5 $11 {[%emt 0:00:00]} 22. Rxc8 {[%emt 0:00:06]} Rxc8 {[%emt 0:00:00]} 23. e4 {[%emt 0:00:04]} Qxd4 {[%emt 0:00:00]} 24. Rxd4 {[%emt 0:00:04]} N5f6 {[%emt 0:00:00]} 25. Bf1 {[%emt 0:00:01]} e5 {[%emt 0:00:00]} 26. Rd3 {[%emt 0:00:06]} h6 {[%emt 0:00:08]} 27. Bh3 {[%emt 0:00:00]} Rc7 {[%emt 0:00:02]} 28. Bxd7 {[%emt 0:00:00]} Nxd7 {[%emt 0:00:01][%mdl 4096] Endgame. KRN-KRN} 29. Rd5 {[%emt 0:00:01][%csl LRa5,LRe5]} Nc5 {[%emt 0:00:06]} (29... f6 $11) 30. Nxe5 $16 {[%emt 0:00:02]} ({Much worse is} 30. Rxe5 f6 31. Re8+ Kf7 $11) 30... f6 {[%emt 0:00:04] [#]} 31. Nf3 {[%emt 0:00:01]} (31. Ng4 $1 $16) 31... Kf7 {[%emt 0:00:06]} (31... Nxe4 $11 {keeps the balance.} 32. Nd4 (32. Rxa5 Rc1+ 33. Kg2 Rc2 $11) 32... Rc4) 32. Nd4 {[%emt 0:00:01]} Nxa4 {[%emt 0:00:02]} 33. Rxa5 {[%emt 0:00:01]} Nc3 {[%emt 0:00:01]} 34. f3 {[%emt 0:00:01]} Rd7 {[%emt 0:00:00]} 35. Nf5 {[%emt 0:00:03]} Ne2+ {[%emt 0:00:05]} 36. Kf2 {[%emt 0:00:01]} Nd4 {[%emt 0:00:01]} 37. Ne3 {[%emt 0:00:02]} Nc6 {[%emt 0:00:01]} 38. Rc5 {[%emt 0:00:02]} Ne5 {[%emt 0:00:01] And now ...Nd3+ would win.} 39. Ke2 {[%emt 0:00:02]} Ra7 {[%emt 0:00:01]} 40. Rc2 {[%emt 0:00:02]} h5 {[%emt 0:00:03]} 41. Nd5 {[%emt 0:00:03]} h4 {[%emt 0:00:01]} 42. Ne3 {[%emt 0:00:04]} ({White should try} 42. gxh4 $16 {f4 would now be deadly.} Ra3 43. Ne3) 42... hxg3 $14 {[%emt 0:00:02]} 43. hxg3 {[%emt 0:00:01]} Ra3 {[%emt 0:00:01]} 44. f4 {[%emt 0:00:02]} Nd7 {[%emt 0:00:01]} 45. Rc7 {[%emt 0:00:01]} Ke8 {[%emt 0:00:01]} 46. Nf5 {[%emt 0:00:01]} g6 {[%emt 0:00:02]} 47. Ng7+ {[%emt 0:00:02]} (47. Rc8+ $16 Kf7 48. Ne3) 47... Kd8 {[%emt 0:00:01]} (47... Ke7 $11 {remains equal.}) 48. Ne6+ $16 {[%emt 0:00:01]} Ke7 $2 {[%emt 0:00:05][%mdl 8192]} (48... Ke8 $16 {is a better chance.}) 49. Nc5 $18 {[%emt 0:00:02]} Kd6 {[%emt 0:00:01]} 50. Rxd7+ {[%emt 0:00:01]} Kxc5 {[%emt 0:00:01] KR-KR} 51. Rd3 {[%emt 0:00:02]} Ra4 {[%emt 0:00:03]} 52. Ke3 {[%emt 0:00:01]} Kc6 {[%emt 0:00:02]} 53. g4 {[%emt 0:00:02]} Ra1 {[%emt 0:00:01]} 54. Rd8 {[%emt 0:00:02]} (54. e5 $142 fxe5 55. fxe5) 54... Ra3+ {[%emt 0:00:01] [#]} 55. Rd3 {[%emt 0:00:01]} (55. Kf2 $142 $1) 55... Ra1 {[%emt 0:00:01]} 56. f5 $2 {[%emt 0:00:04]} (56. e5 $18 fxe5 57. fxe5) 56... g5 $1 $11 {[%emt 0:00:01]} 57. Rd8 {[%emt 0:00:04] Rf8 is the strong threat.} Ra3+ {[%emt 0:00:01]} 58. Rd3 {[%emt 0:00:01]} Ra1 {[%emt 0:00:01]} 59. Rd2 {[%emt 0:00:08]} Re1+ {[%emt 0:00:02]} 60. Kf3 {[%emt 0:00:02] Threatens to win with Rd8.} Rf1+ {[%emt 0:00:02]} 61. Rf2 {[%emt 0:00:01]} Re1 {[%emt 0:00:01]} 62. Rd2 {[%emt 0:00:02] Black must now prevent Rd8.} (62. Re2 $5 Rf1+ $8 63. Rf2 $11) 62... Rf1+ {[%emt 0:00:03]} 63. Rf2 {[%emt 0:00:00]} Re1 {[%emt 0:00:01]} 64. Rh2 {[%emt 0:00:02]} Kd6 {[%emt 0:00:01]} 65. Rh8 {[%emt 0:00:01]} Rf1+ {[%emt 0:00:02]} 66. Ke3 {[%emt 0:00:01]} Re1+ {[%emt 0:00:04]} 67. Kd3 {[%emt 0:00:02]} Ke7 {[%emt 0:00:04] Prevents Re8+} 68. Rh7+ {[%emt 0:00:03]} Ke8 {[%emt 0:00:02]} 69. Kd4 {[%emt 0:00:01]} Rd1+ {[%emt 0:00:01]} 70. Kc5 {[%emt 0:00:02]} Rd2 {[%emt 0:00:01]} 71. Rc7 {[%emt 0:00:03]} Rg2 $2 {[%emt 0:00:04][%mdl 8192]} (71... Rd1 $11) 72. Kd5 $2 {[%emt 0:00:03]} (72. Kd6 $18 Ra2 73. e5 fxe5 74. f6 (74. Kxe5 Rg2 $18)) 72... Rxg4 {[%emt 0:00:02]} 73. e5 {[%emt 0:00:01]} fxe5 $2 {[%emt 0:00:04][%mdl 8192]} (73... Rb4 $11) 74. Ke6 $1 {[%emt 0:00:01][%cal Rc7c8] White mates.} Kd8 {[%emt 0:00:02]} 75. Rd7+ {[%emt 0:00:00]} Kc8 {[%emt 0:00:00]} 76. f6 {[%emt 0:00:01][%cal Bf5f6,Bf6f7][%mdl 32]} e4 {[%emt 0:00:04][%cal Be5e4,Be4e3][%mdl 32]} 77. f7 {[%emt 0:00:02][%cal Rf7f8]} Rf4 {[%emt 0:00:00]} 78. Rd5 {[%emt 0:00:01]} e3 {[%emt 0:00:12]} 79. Rf5 {[%emt 0:00:01]} Re4+ {[%emt 0:00:03]} 80. Kd5 {[%emt 0:00:02] Weighted Error Value: White=0.26 (precise) /Black=0.28 (precise) .  Loses game:     	---       	Black=3      Missed win:     	White=2     	---        Mistake:       	White=6     	Black=4      Inaccurate:     	---       	Black=4      OK:         	White=20    	Black=23     Best:        	White=4     	Black=7      Strong:       	White=1     	Black=1} 1-0

[Event "Indian Blitz Championship 2023"]
[Site "Nashik"]
[Date "2024.03.07"]
[Round "7.9"]
[White "Ratnakaran, K.."]
[Black "Kaustuv, Kundu"]
[Result "0-1"]
[ECO "B31"]
[WhiteElo "2258"]
[BlackElo "2388"]
[Annotator "TA"]
[PlyCount "70"]
[EventDate "2024.03.07"]
[EventType "blitz"]
[EventCountry "IND"]
[SourceTitle "playchess.com"]
[Source "ChessBase"]
[SourceQuality "1"]
[TimeControl "180+2"]

{[%evp 16,70,27,17,14,4,34,3,15,12,22,0,0,-20,-7,-7,0,0,0,0,0,0,0,0,0,-7,0,0,0,0,0,0,0,0,0,-18,0,-1,-8,-8,0,-4,43,-338,-355,-1706,-1602,-29986,-29987,-29986,-893,-1022,-994,-1020,-993,-29983,-29978]} 1. e4 {[%emt 0:00:01]} c5 {[%emt 0:00:01]} 2. Nf3 {[%emt 0:00:02]} Nc6 {[%emt 0:00:02]} 3. Bb5 {[%emt 0:00:01]} g6 {[%emt 0:00:03]} 4. O-O {[%emt 0:00:02]} Bg7 {[%emt 0:00:01]} 5. Re1 {[%emt 0:00:02]} e5 {[%emt 0:00:04]} 6. b4 {[%emt 0:00:01]} cxb4 {[%emt 0:00:14]} 7. a3 {[%emt 0:00:01]} Nge7 {[%emt 0:00:06]} 8. axb4 {[%emt 0:00:03]} O-O {[%emt 0:00:03]} 9. Bb2 {[%emt 0:00:05]} d6 {[%emt 0:00:05]} 10. c3 {[%emt 0:00:04]} Be6 {[%emt 0:00:14]} 11. d3 {[%emt 0:00:30]} a5 {[%emt 0:00:08] The position is equal.} 12. bxa5 {[%emt 0:00:04]} Rxa5 {[%emt 0:00:02]} 13. Rxa5 {[%emt 0:00:18]} Qxa5 {[%emt 0:00:02]} 14. Ba4 {[%emt 0:00:04]} Ra8 {[%emt 0:00:42]} 15. Bb3 {[%emt 0:00:06]} Bxb3 {[%emt 0:00:03]} 16. Qxb3 {[%emt 0:00:02]} Qa2 {[%emt 0:00:02]} 17. Qc2 {[%emt 0:00:16]} Ra6 {[%emt 0:00:10]} 18. Nbd2 {[%emt 0:00:06]} Qa4 {[%emt 0:00:09]} 19. Qb1 {[%emt 0:00:09]} h6 {[%emt 0:00:19]} 20. h3 {[%emt 0:00:20]} b5 {[%emt 0:00:20]} 21. Bc1 {[%emt 0:00:14]} b4 {[%emt 0:00:03]} 22. cxb4 {[%emt 0:00:11]} Qxb4 {[%emt 0:00:01]} 23. Qc2 {[%emt 0:00:04]} d5 {[%emt 0:00:11]} 24. exd5 {[%emt 0:00:10]} Nxd5 {[%emt 0:00:01]} 25. Re4 {[%emt 0:00:02]} Qb5 {[%emt 0:00:12] Black wants to play ...Ndb4.} 26. Rc4 {[%emt 0:00:09]} Ndb4 {[%emt 0:00:06]} 27. Qb3 {[%emt 0:00:05]} Ra1 {[%emt 0:00:11][%cal Oe5e4]} 28. Kh2 {[%emt 0:00:04]} Qb8 {[%emt 0:00:03]} (28... Qa4 $11) 29. Bb2 $2 {[%emt 0:00:09][%mdl 8192] [#] Loses the game.} (29. Ne4 $14) 29... e4+ $19 {[%emt 0:00:02]} 30. Be5 $2 {[%emt 0:00:08]} (30. g3 Bxb2 (30... exf3 31. Bxg7 Kxg7 32. Qb2+ Qe5 33. Rxb4 $11) 31. Nxe4) 30... Bxe5+ {[%emt 0:00:00]} 31. Nxe5 {[%emt 0:00:07] White is weak on the dark squares} Qxe5+ {[%emt 0:00:00]} 32. g3 {[%emt 0:00:02]} exd3 {[%emt 0:00:00]} (32... Qf5 $142 33. Kg2 Nxd3 (33... exd3 $2 34. Rg4 $19) 34. f3 e3 35. g4 e2 36. gxf5 e1=Q (36... e1=R $2 {is the wrong capture.} 37. Qxd3 Ne5 38. Qd8+ Kh7 39. Re4 $18) 37. Nb1 Rxb1 (37... Qxb1 $2 38. Qxb1 Rxb1 39. Rxc6 $19) 38. Qxb1 Qxb1 39. Rxc6 Qa2+ (39... gxf5 {is a self mate.} 40. h4 Qa2+ 41. Kg1 Qf2+ 42. Kh1 Nf4 43. Rc8+ Kg7 44. Rc2 Qxc2 45. Kg1 Qg2#) 40. Kg1 Qf2+ (40... gxf5 41. h4 Nf4 42. Rc8+ Kg7 43. Rc2 Qxc2 44. Kf1 Qg2+ 45. Ke1 Qe2#) 41. Kh1 Nf4 (41... gxf5 {gets mated.} 42. Rc8+ Kg7 43. Rc2 Qxc2 44. Kg1 Qf2+ 45. Kh1 Ne1 46. h4 Qg2#) (41... Qxf3+ 42. Kh2 Qxc6 43. Kg3 gxf5 44. h4 f4+ 45. Kh2 Ne1 46. h5 Qg2#) 42. Rc8+ Kg7 43. Rc2 Qxc2 44. f6+ Kxf6 45. h4 Qg2#) 33. Re4 {[%emt 0:00:11]} Qf6 {[%emt 0:00:00]} 34. Rf4 {[%emt 0:00:02]} Qe6 {[%emt 0:00:00] [#] White must now prevent ...Qxb3.} 35. Qc3 {[%emt 0:00:01]} Qe1 {[%emt 0:00:00] Weighted Error Value: White=0.89/Black=0.23 (precise) .  Loses game:     	White=1     	---        Mistake:       	White=1     	Black=1      Inaccurate:     	White=2     	Black=1      OK:         	White=10    	Black=4      Best:        	---       	Black=2} 0-1

[Event "Indian Blitz Championship 2023"]
[Site "Nashik"]
[Date "2024.03.07"]
[Round "7.10"]
[White "Gaurav Rajesh Zagade"]
[Black "Aronyak Ghosh"]
[Result "0-1"]
[ECO "E15"]
[WhiteElo "2124"]
[BlackElo "2517"]
[Annotator "TA"]
[PlyCount "122"]
[EventDate "2024.03.07"]
[EventType "blitz"]
[EventCountry "IND"]
[SourceTitle "playchess.com"]
[Source "ChessBase"]
[SourceQuality "1"]
[TimeControl "180+2"]

{[%evp 15,122,38,19,-8,8,16,18,11,10,16,21,17,12,7,0,-8,-8,-246,-240,-249,-248,-233,-213,-264,-240,-264,-255,-259,-253,-270,-279,-285,-287,-279,-280,-282,-283,-275,-261,-286,-289,-281,-279,-297,-294,-308,-295,-351,-355,-425,-463,-463,-434,-456,-453,-476,-467,-558,-472,-610,-562,-627,-647,-614,-487,-493,-482,-477,-470,-480,0,0,0,0,0,0,0,0,0,0,0,-174,-45,-417,-432,-483,-247,-731,-713,-759,-722,-5616,-5253,-29976,-29977,-29977,-29978,-29978,-29979,-29979,-29980,-29979,-29980,-29985,-29986,-29987,-29984,-29984,-29985]} 1. d4 {[%emt 0:00:01]} Nf6 {[%emt 0:00:01]} 2. c4 {[%emt 0:00:01]} e6 {[%emt 0:00:01]} 3. Nf3 {[%emt 0:00:02]} b6 {[%emt 0:00:03]} 4. g3 {[%emt 0:00:03]} Ba6 {[%emt 0:00:02]} 5. b3 {[%emt 0:00:05]} Bb4+ {[%emt 0:00:02]} 6. Bd2 {[%emt 0:00:02]} c5 {[%emt 0:00:01]} 7. Bg2 {[%emt 0:00:06]} Bb7 {[%emt 0:00:01]} 8. O-O {[%emt 0:00:08]} O-O {[%emt 0:00:02]} 9. Bg5 {[%emt 0:00:30]} cxd4 {[%emt 0:00:06]} 10. Qxd4 {[%emt 0:00:12]} Nc6 {[%emt 0:00:10]} 11. Qb2 {[%emt 0:00:21] The position is equal.} h6 {[%emt 0:00:07]} 12. Bxf6 {[%emt 0:00:05]} Qxf6 {[%emt 0:00:02]} 13. Qxf6 {[%emt 0:00:03]} gxf6 {[%emt 0:00:02]} 14. Rd1 {[%emt 0:00:02][%cal Oa2a3] aiming for a3!} Rfd8 {[%emt 0:00:04]} 15. Nbd2 {[%emt 0:00:08]} f5 {[%emt 0:00:04] Prevents Ne4.} 16. Ne5 $2 {[%emt 0:00:17] [#]} Bc3 $1 $19 {[%emt 0:02:46] This pair of bishops is nice.} 17. Nd3 {[%emt 0:00:45]} Bxa1 {[%emt 0:00:00]} 18. Rxa1 {[%emt 0:00:01]} Rab8 {[%emt 0:00:00]} 19. e3 {[%emt 0:00:05]} Ne7 {[%emt 0:00:00]} 20. Nf4 {[%emt 0:00:07]} Bxg2 {[%emt 0:00:00]} 21. Kxg2 {[%emt 0:00:01]} d5 {[%emt 0:00:00]} 22. cxd5 {[%emt 0:00:29]} Nxd5 {[%emt 0:00:00]} 23. Nc4 {[%emt 0:00:02]} Rbc8 {[%emt 0:00:00]} 24. a4 {[%emt 0:00:03]} Nxf4+ {[%emt 0:00:00]} 25. gxf4 {[%emt 0:00:01][%mdl 4096] Endgame. KRR-KRN} Rd3 {[%emt 0:00:00]} 26. Rb1 {[%emt 0:00:06]} Rcd8 {[%emt 0:00:00]} 27. Kf3 {[%emt 0:00:02]} Rd1 {[%emt 0:00:00]} 28. Rb2 {[%emt 0:00:00]} Kf8 {[%emt 0:00:00]} 29. Rc2 {[%emt 0:00:03]} Rc8 {[%emt 0:00:00]} 30. Rb2 {[%emt 0:00:05]} Ke7 {[%emt 0:00:00]} 31. Ne5 {[%emt 0:00:03]} Rcc1 {[%emt 0:00:00]} 32. b4 {[%emt 0:00:02]} f6 {[%emt 0:00:00]} 33. Ng6+ {[%emt 0:00:03]} Kf7 {[%emt 0:00:00]} 34. Nh4 {[%emt 0:00:01]} Rc4 {[%emt 0:00:00]} 35. a5 {[%emt 0:00:01]} b5 {[%emt 0:00:00]} 36. Ng2 {[%emt 0:00:05]} Ke7 {[%emt 0:00:00]} 37. h4 {[%emt 0:00:02]} Ra1 {[%emt 0:00:00]} 38. h5 {[%emt 0:00:01]} Ra4 {[%emt 0:00:00]} 39. Nh4 {[%emt 0:00:01]} Kd6 {[%emt 0:00:00]} 40. Rd2+ {[%emt 0:00:01]} Kc6 {[%emt 0:00:00]} 41. Rd8 {[%emt 0:00:02]} Rcxb4 {[%emt 0:00:02]} (41... Raxb4 42. Re8 Kd6 43. Rh8 $19) 42. Rh8 {[%emt 0:00:01]} e5 $2 {[%emt 0:00:06]} (42... Rxa5 43. Rxh6 Rb1 44. Rxf6 $19) ({Black should play} 42... Re4 $19 {Strongly threatening ...b4.} 43. Rxh6 b4 (43... Rxa5 44. Rxf6 b4 45. h6 $11)) 43. Rxh6 $11 {[%emt 0:00:03]} exf4 {[%emt 0:00:02]} (43... Rxa5 $2 44. Rxf6+ Kc7 45. Rf7+ Kc6 46. Nxf5 $18) 44. Rxf6+ {[%emt 0:00:01]} Kc7 {[%emt 0:00:02]} 45. Ng6 {[%emt 0:00:03]} fxe3 {[%emt 0:00:01]} 46. fxe3 {[%emt 0:00:01]} Rb1 {[%emt 0:00:05]} 47. h6 {[%emt 0:00:09]} Rh1 {[%emt 0:00:09]} 48. Nf4 $2 {[%emt 0:00:00]} (48. Rf7+ $11 {and White has nothing to worry.} Kc6 49. h7 (49. Rxf5 $2 {perishes.} Rxh6 50. Ne7+ Kd7 $19)) 48... b4 {[%emt 0:00:05]} (48... Rxa5 $19 {Hoping for ...b4.} 49. Kg2 Re1 50. Rxf5 Ra2+ (50... Rxe3 $2 {loses.} 51. Nd5+ Kc6 52. Nxe3 $18) 51. Kg3 Rxe3+ 52. Kg4 Re8 53. Rxb5 Rh2) 49. Rxf5 $2 {[%emt 0:00:00][%mdl 8192]} ({Better is} 49. Kg2 $1 $15 Rd1 50. Rxf5) 49... Rxh6 $19 {[%emt 0:00:04]} 50. Rb5 {[%emt 0:00:00]} a6 {[%emt 0:00:03]} (50... Rf6 $142 51. Ke2 Kc6) 51. Rc5+ $2 {[%emt 0:00:01]} (51. Nd5+ Kc8 52. Rxb4 Rxa5 53. Rc4+ Kd7 54. e4) 51... Rc6 {[%emt 0:00:01]} 52. Rf5 {[%emt 0:00:03]} b3 {[%emt 0:00:02]} 53. Nd5+ {[%emt 0:00:01]} Kd6 {[%emt 0:00:01][%cal Ob3b2] ( -> ...b2!)} 54. Nb6 {[%emt 0:00:01] [#]} Rxa5 $3 {[%emt 0:00:11][%mdl 512] Black mates.} 55. Rxa5 {[%emt 0:00:06]} Rxb6 {[%emt 0:00:01] KR-KR} 56. Ra1 {[%emt 0:00:01]} Kc5 {[%emt 0:00:03]} 57. e4 {[%emt 0:00:03]} b2 {[%emt 0:00:02]} 58. Rb1 {[%emt 0:00:01]} Kd4 {[%emt 0:00:01]} 59. Ke2 {[%emt 0:00:03]} Kc3 {[%emt 0:00:01]} ({Stronger than} 59... Kxe4 60. Kd2 $11) 60. Kd1 {[%emt 0:00:02]} Rd6+ {[%emt 0:00:01]} 61. Ke2 {[%emt 0:00:01]} Kc2 {[%emt 0:00:01] Weighted Error Value: White=0.54/Black=0.22 (precise) .  Loses game:     	White=3     	---        Missed win:     	---       	Black=1      Mistake:       	White=1     	Black=2      OK:         	White=11    	Black=20     Best:        	White=2     	Black=1      Strong:       	---       	Black=1} 0-1

[Event "Indian Blitz Championship 2023"]
[Site "Nashik"]
[Date "2024.03.07"]
[Round "8.1"]
[White "Ghosh, Diptayan"]
[Black "Hari Madhavan N B"]
[Result "1-0"]
[ECO "A11"]
[WhiteElo "2559"]
[BlackElo "2395"]
[Annotator "TA"]
[PlyCount "137"]
[EventDate "2024.03.07"]
[EventType "blitz"]
[EventCountry "IND"]
[SourceTitle "playchess.com"]
[Source "ChessBase"]
[SourceQuality "1"]
[TimeControl "180+2"]

{[%evp 64,137,242,131,125,127,126,76,70,68,62,0,0,0,0,0,0,0,0,0,0,0,0,0,8,5,12,14,16,13,243,240,227,22,11,20,8,8,8,0,0,0,8,-683,346,279,360,268,303,262,503,508,456,524,552,533,592,0,0,0,633,0,0,0,637,613,637,683,684,684,677,658,1627,1330,1760,1230]} 1. Nf3 {[%emt 0:00:02]} d5 {[%emt 0:00:01]} 2. g3 {[%emt 0:00:01]} c6 {[%emt 0:00:01]} 3. Bg2 {[%emt 0:00:01]} Nf6 {[%emt 0:00:01]} 4. O-O {[%emt 0:00:02]} Bf5 {[%emt 0:00:01]} 5. c4 {[%emt 0:00:03]} e6 {[%emt 0:00:02]} 6. Qb3 {[%emt 0:00:03]} Qb6 {[%emt 0:00:21]} 7. d3 {[%emt 0:00:01]} Nbd7 {[%emt 0:00:04]} 8. cxd5 {[%emt 0:00:04]} exd5 {[%emt 0:00:02]} 9. Qc2 {[%emt 0:00:01]} Be7 {[%emt 0:00:07]} 10. Nc3 {[%emt 0:00:01]} h6 {[%emt 0:00:03]} 11. e4 {[%emt 0:00:02]} dxe4 {[%emt 0:00:07]} 12. dxe4 {[%emt 0:00:01]} Bh7 {[%emt 0:00:01]} 13. Be3 {[%emt 0:00:02]} Qa5 {[%emt 0:00:05]} 14. h3 {[%emt 0:00:05]} O-O {[%emt 0:00:02]} 15. a3 {[%emt 0:00:03]} Rfe8 {[%emt 0:00:14]} 16. Rfe1 {[%emt 0:00:10]} Qc7 {[%emt 0:00:08]} 17. Rad1 {[%emt 0:00:07]} Bc5 {[%emt 0:00:05]} 18. Nd4 {[%emt 0:00:07]} Bb6 {[%emt 0:00:17]} 19. Bf4 {[%emt 0:00:15]} Qc8 {[%emt 0:00:02]} 20. Kh2 {[%emt 0:00:05]} Bc7 {[%emt 0:00:10]} 21. Bxc7 {[%emt 0:00:22]} Qxc7 {[%emt 0:00:01]} 22. f4 {[%emt 0:00:01]} Nb6 {[%emt 0:00:10]} 23. Qf2 {[%emt 0:00:04]} Rad8 {[%emt 0:00:05]} 24. e5 {[%emt 0:00:05]} Nfd5 {[%emt 0:00:02]} 25. Ne4 {[%emt 0:00:19]} f6 {[%emt 0:00:05]} 26. Nd6 {[%emt 0:00:06]} Re7 {[%emt 0:00:09]} 27. N4f5 {[%emt 0:00:13]} Red7 {[%emt 0:00:22]} 28. Qc5 {[%emt 0:00:14]} fxe5 {[%emt 0:00:22]} 29. fxe5 {[%emt 0:00:01]} Bxf5 {[%emt 0:00:07]} 30. Nxf5 {[%emt 0:00:02]} Rf7 {[%emt 0:00:03]} 31. Nd6 {[%emt 0:00:05]} Re7 {[%emt 0:00:01]} 32. b4 {[%emt 0:00:05]} Kh8 {[%emt 0:00:20]} 33. Qd4 {[%emt 0:00:11]} (33. Qc2 $18) 33... Nc8 $16 {[%emt 0:00:08]} 34. Nf5 {[%emt 0:00:08]} Rf7 {[%emt 0:00:05]} 35. Rf1 {[%emt 0:00:06]} ({White should try} 35. Ne3) 35... Rdf8 $16 {[%emt 0:00:07]} 36. Be4 {[%emt 0:00:56]} Nce7 {[%emt 0:00:02]} 37. g4 {[%emt 0:00:00]} (37. Nxe7 $1 $14 Qxe7 38. Rxf7 Qxf7 39. Rd2 (39. Qxa7 $2 Nc3 $19) (39. Bxd5 cxd5 40. Qxa7 Qh5 $11)) 37... Ng6 $11 {[%emt 0:00:05]} 38. Bxd5 {[%emt 0:00:00]} (38. Qxa7 $2 Qxe5+ 39. Kg1 Qxe4 $19) 38... cxd5 {[%emt 0:00:01]} 39. Rde1 {[%emt 0:00:00]} Re8 {[%emt 0:00:01]} 40. Qxd5 {[%emt 0:00:00]} Rxe5 {[%emt 0:00:03]} 41. Rxe5 {[%emt 0:00:00]} Qxe5+ {[%emt 0:00:01]} 42. Qxe5 {[%emt 0:00:00]} Nxe5 {[%emt 0:00:01]} 43. Rd1 {[%emt 0:00:04]} Nc4 {[%emt 0:00:03]} 44. a4 {[%emt 0:00:02]} Nb2 {[%emt 0:00:02]} 45. Rd8+ {[%emt 0:00:01]} Kh7 {[%emt 0:00:01]} 46. a5 {[%emt 0:00:01]} g6 $2 {[%emt 0:00:05]} (46... Nc4 $11 {and Black is okay.}) 47. Nd6 $18 {[%emt 0:00:00]} Rc7 {[%emt 0:00:04] [#]} 48. Rb8 $2 {[%emt 0:00:01]} (48. Ra8 $1 $18 {[%cal Ra8a7]} a6 49. Ra7) 48... Nd3 $1 $11 {[%emt 0:00:01]} (48... Rc2+ $2 49. Kg3 $18) 49. b5 {[%emt 0:00:02]} Nc5 $1 {[%emt 0:00:02]} 50. Kg3 {[%emt 0:00:09]} Rd7 {[%emt 0:00:01]} 51. Ne8 {[%emt 0:00:02]} Rd3+ {[%emt 0:00:02]} 52. Kf4 {[%emt 0:00:01]} Rb3 {[%emt 0:00:04]} 53. Nd6 $2 {[%emt 0:00:01][%mdl 8192] [#]} (53. Ra8 $11) 53... Rd3 $4 {[%emt 0:00:04][%mdl 8192]} (53... g5+ $1 $19 {and all is fine.} 54. Kf5 Rf3+ 55. Ke5 Nd7+ (55... Rxh3 $2 {is the wrong capture.} 56. Kd5 $18) 56. Ke4 Rf4+ (56... Rxh3 $2 {loses.} 57. Rxb7 Kg6 58. Rxd7 $18) 57. Kd5 Nxb8 58. Nxb7 Rb4) 54. Nxb7 $18 {[%emt 0:00:04]} g5+ {[%emt 0:00:01]} 55. Ke5 {[%emt 0:00:05]} Nd7+ {[%emt 0:00:03]} 56. Ke4 {[%emt 0:00:01]} Rb3 $2 {[%emt 0:00:03]} (56... Rxh3 {was worth a try.} 57. Ra8 Kg6 58. Rxa7 Nf6+ 59. Ke5 (59. Kd4 h5 $18) 59... Nxg4+ 60. Kd4 Nf6) 57. Rd8 $18 {[%emt 0:00:01]} Nf6+ {[%emt 0:00:00]} 58. Kf5 {[%emt 0:00:05]} Kg7 {[%emt 0:00:01]} 59. Nd6 {[%emt 0:00:01]} Rf3+ {[%emt 0:00:02]} 60. Ke6 {[%emt 0:00:01]} Re3+ {[%emt 0:00:01]} 61. Kf5 {[%emt 0:00:01]} Rf3+ $1 {[%emt 0:00:01]} 62. Ke6 {[%emt 0:00:01]} Re3+ {[%emt 0:00:00]} 63. Kf5 {[%emt 0:00:01]} Rf3+ $1 {[%emt 0:00:01]} 64. Ke5 {[%emt 0:00:01]} Re3+ {[%emt 0:00:01]} 65. Kd4 {[%emt 0:00:01]} Ra3 {[%emt 0:00:02]} 66. b6 {[%emt 0:00:05]} axb6 {[%emt 0:00:01]} 67. axb6 {[%emt 0:00:01]} Ra4+ {[%emt 0:00:03]} 68. Kd3 {[%emt 0:00:03]} Ra3+ {[%emt 0:00:04]} 69. Kc2 {[%emt 0:00:01]} 1-0